bitfinex/quotes_SOLUSD_20240811
["timestamp","ask_amount","ask_price","bid_price","bid_amount"]
[1723404327009,4.7746,146.61,146.52,21.5204]
[1723404327635,27.49,146.63,146.53,27.49]
[1723404327937,4.7742,146.63,146.53,27.49]
[1723404328240,4.7736,146.64,146.53,27.49]
[1723404328426,27.49,146.63,146.53,27.49]
[1723404328733,27.49,146.63,146.52,21.5204]
[1723404328734,4.7762,146.56,146.52,21.5204]
[1723404328931,4.7766,146.55,146.52,21.5204]
[1723404329108,4.7766,146.55,146.52,15.2469]
[1723404329304,27.49,146.57,146.52,15.2469]
[1723404329541,20.0,146.56,146.52,15.2469]
[1723404331844,20.0,146.58,146.52,15.2469]
[1723404332046,20.12549,146.6,146.52,15.2469]
[1723404332334,4.7758,146.58,146.52,15.2469]
[1723404332538,45.0,146.59,146.52,42.7369]
[1723404332747,27.49,146.63,146.52,42.7369]
[1723404332911,4.775,146.6,146.52,42.7369]
[1723404333114,4.7752,146.59,146.52,15.2469]
[1723404334142,0.12549,146.6,146.52,15.2469]
[1723404334340,27.49,146.57,146.52,15.2469]
[1723404334514,4.7768,146.55,146.52,15.2469]
[1723404334710,24.7762,146.56,146.52,15.2469]
[1723404335435,77.2665,146.55,146.52,15.2469]
[1723404335642,20.0,146.54,146.52,15.2469]
[1723404336337,20.0,146.56,146.52,15.2469]
[1723404336638,4.7759,146.57,146.52,15.2469]
[1723404337819,4.7763,146.56,146.52,15.2469]
[1723404338425,4.7765,146.55,146.52,15.2469]
[1723404338634,27.49,146.55,146.52,15.2469]
[1723404338934,4.7771,146.53,146.48,21.9331]
[1723404339145,4.7775,146.52,146.48,21.9331]
[1723404339516,65.12549,146.54,146.48,21.9331]
[1723404339517,4.7772,146.53,146.48,21.9331]
[1723404339719,4.7771,146.53,146.48,21.9331]
[1723404340321,20.0,146.54,146.48,49.4231]
[1723404340527,20.0,146.56,146.48,49.4231]
[1723404340844,20.12549,146.57,146.48,49.4231]
[1723404341052,45.0,146.56,146.48,49.4231]
[1723404341225,20.0,146.55,146.48,49.4231]
[1723404341434,20.0,146.55,146.48,21.9331]
[1723404341626,27.49,146.53,146.48,21.9331]
[1723404341830,24.7777,146.52,146.48,21.9331]
[1723404342027,4.7778,146.51,146.48,21.9331]
[1723404342453,20.0,146.52,146.48,21.9331]
[1723404342643,4.7788,146.48,146.44,21.6639]
[1723404342820,27.61549,146.49,146.44,21.6639]
[1723404343022,20.0,146.48,146.44,21.6639]
[1723404343321,24.7788,146.48,146.44,21.6639]
[1723404343819,4.7794,146.46,146.44,15.6596]
[1723404344018,20.0,146.48,146.4,15.6596]
[1723404344019,27.49,146.45,146.4,15.6596]
[1723404344220,65.0,146.44,146.4,15.6596]
[1723404345256,27.74098,146.43,146.36,6.0043]
[1723404345571,69.90649,146.42,146.36,6.0043]
[1723404345856,20.0,146.42,146.36,6.0043]
[1723404346064,45.0,146.41,146.36,6.0043]
[1723404346230,20.0,146.4,146.36,6.0043]
[1723404346768,20.0,146.41,146.36,6.0043]
[1723404347053,27.49,146.47,146.38,27.49]
[1723404347226,4.7791,146.47,146.38,27.49]
[1723404347424,4.7791,146.47,146.4,27.49]
[1723404347846,408.49,146.51,146.4,27.49]
[1723404348023,408.49,146.51,146.44,27.49]
[1723404348024,4.7778,146.51,146.44,27.49]
[1723404348223,4.7778,146.51,146.45,6.1707]
[1723404348662,27.49,146.55,146.45,6.1707]
[1723404348955,4.7775,146.52,146.45,6.1707]
[1723404349257,4.7779,146.51,146.45,6.1707]
[1723404349555,4.7791,146.47,146.41,21.3719]
[1723404349937,11.943,146.53,146.41,48.8619]
[1723404349938,27.49,146.52,146.41,48.8619]
[1723404350239,20.0,146.51,146.41,48.8619]
[1723404350753,4.7787,146.49,146.41,48.8619]
[1723404351048,72.49,146.5,146.41,21.3719]
[1723404351223,20.12549,146.49,146.41,21.3719]
[1723404351429,45.0,146.48,146.41,21.3719]
[1723404351636,20.0,146.47,146.41,21.3719]
[1723404352251,4.7789,146.48,146.41,21.3719]
[1723404353262,20.0,146.51,146.41,21.3719]
[1723404353481,45.12549,146.5,146.42,27.49]
[1723404353682,20.0,146.49,146.42,27.49]
[1723404353848,20.0,146.49,146.44,27.49]
[1723404354566,4.7778,146.51,146.44,27.49]
[1723404355069,0.12549,146.52,146.44,27.49]
[1723404355370,5.15417,146.52,146.44,27.49]
[1723404355599,4.7777,146.52,146.44,27.49]
[1723404356079,4.7769,146.54,146.49,6.0867]
[1723404356282,34.56100287,146.56,146.49,6.0867]
[1723404356448,34.56100287,146.56,146.45,21.7028]
[1723404356643,4.7775,146.52,146.45,21.7028]
[1723404356844,34.56100287,146.56,146.46,27.49]
[1723404357045,4.7771,146.53,146.46,27.49]
[1723404357265,4.7775,146.52,146.46,27.49]
[1723404357540,20.0,146.53,146.46,27.49]
[1723404357750,4.7768,146.54,146.46,27.49]
[1723404357948,4.7772,146.53,146.46,27.49]
[1723404358143,7.07275841,146.57,146.46,27.49]
[1723404358144,20.0,146.56,146.46,27.49]
[1723404358370,4.7776,146.52,146.46,27.49]
[1723404358570,45.0,146.55,146.46,27.49]
[1723404358571,4.7772,146.53,146.46,27.49]
[1723404358754,20.0,146.54,146.46,27.49]
[1723404359787,4.7771,146.53,146.46,27.49]
[1723404360083,20.0,146.54,146.46,27.49]
[1723404360452,4.7771,146.53,146.46,27.49]
[1723404361283,0.12549,146.51,146.45,21.7028]
[1723404361593,4.7784,146.5,146.45,21.7028]
[1723404361810,45.12549,146.49,146.45,21.7028]
[1723404361957,4.7794,146.46,146.45,15.6161]
[1723404362156,24.779,146.48,146.45,15.6161]
[1723404362382,20.0,146.48,146.45,15.6161]
[1723404362679,20.12549,146.51,146.45,15.6161]
[1723404362989,45.12549,146.5,146.45,15.6161]
[1723404363279,4.7788,146.48,146.45,15.6161]
[1723404363473,4.90459,146.47,146.45,15.6161]
[1723404363780,24.90459,146.47,146.45,15.6161]
[1723404363981,4.7794,146.46,146.45,15.6161]
[1723404364151,4.7798,146.45,146.41,21.7028]
[1723404364357,20.0,146.47,146.41,21.7028]
[1723404364584,20.0,146.47,146.41,49.1928]
[1723404364876,20.0,146.47,146.41,21.7028]
[1723404365086,49.7795,146.46,146.41,21.7028]
[1723404365258,20.0,146.45,146.41,21.7028]
[1723404366661,20.0,146.49,146.41,49.1928]
[1723404366874,4.7782,146.5,146.41,49.1928]
[1723404368573,20.0,146.51,146.41,49.1928]
[1723404368789,45.37647,146.5,146.41,49.1928]
[1723404368971,20.0,146.49,146.41,49.1928]
[1723404369180,20.0,146.49,146.43,27.49]
[1723404370072,278.633,146.55,146.45,27.49]
[1723404370073,260.6,146.55,146.45,27.49]
[1723404370395,260.6,146.55,146.44,15.618]
[1723404370396,27.49,146.54,146.44,15.618]
[1723404370581,27.49,146.52,146.44,15.618]
[1723404370969,4.7785,146.49,146.44,15.618]
[1723404371166,4.7782,146.5,146.44,15.618]
[1723404371477,20.0,146.51,146.44,15.618]
[1723404371688,20.0,146.53,146.44,15.618]
[1723404371868,45.37647,146.52,146.44,15.618]
[1723404372069,20.0,146.51,146.44,15.618]
[1723404372486,24.7781,146.51,146.44,15.618]
[1723404372702,20.0,146.51,146.45,28.85541663]
[1723404372871,20.0,146.51,146.46,1.36539418]
[1723404373066,24.7778,146.51,146.45,27.49]
[1723404373262,24.7778,146.51,146.44,15.618]
[1723404373469,27.49,146.48,146.41,6.0867]
[1723404373679,4.7804,146.43,146.4,16.6234]
[1723404374072,4.7807,146.42,146.4,16.6234]
[1723404374281,45.12549,146.41,146.38,6.1577]
[1723404374496,20.0,146.4,146.36,16.6234]
[1723404375572,24.7815,146.4,146.36,16.6234]
[1723404377200,4.7821,146.38,146.36,16.6234]
[1723404377382,4.782,146.39,146.36,16.6234]
[1723404377583,20.0,146.4,146.36,16.6234]
[1723404379297,4.7811,146.41,146.36,16.6234]
[1723404379794,4.7814,146.4,146.36,16.6234]
[1723404380979,20.0,146.41,146.36,16.6234]
[1723404381180,4.7822,146.38,146.36,16.6234]
[1723404381380,45.0,146.37,146.32,16.6234]
[1723404381597,4.7837,146.33,146.32,16.6234]
[1723404381800,32.2739,146.33,146.26,22.7811]
[1723404381996,20.0,146.32,146.26,22.7811]
[1723404382198,24.784,146.32,146.26,22.7811]
[1723404382404,4.7843,146.31,146.26,22.7811]
[1723404383281,4.7847,146.3,146.26,22.7811]
[1723404383500,4.7847,146.3,146.26,16.6234]
[1723404383501,4.785,146.29,146.26,16.6234]
[1723404383699,92.49,146.29,146.25,0.8464571]
[1723404384005,4.7856,146.27,146.25,0.8464571]
[1723404384191,20.0,146.28,146.25,0.8464571]
[1723404384382,45.0,146.27,146.25,0.8464571]
[1723404384582,20.0,146.26,146.25,0.8464571]
[1723404385016,52.2759,146.26,146.25,0.8464571]
[1723404385316,52.2759,146.26,146.12,18.67798506]
[1723404385317,27.49,146.23,146.12,18.67798506]
[1723404385677,92.61549,146.22,146.12,18.67798506]
[1723404385873,27.49,146.2,146.12,17.17798506]
[1723404386106,20.0,146.19,146.12,17.17798506]
[1723404386302,45.0,146.18,146.12,17.17798506]
[1723404386517,4.7899,146.14,146.12,0.55458506]
[1723404386696,20.12549,146.17,146.12,0.55458506]
[1723404387001,4.7872,146.23,146.13,27.49]
[1723404387208,27.49,146.26,146.15,27.49]
[1723404387377,27.49,146.22,146.12,28.04458506]
[1723404387577,20.0,146.21,146.12,28.04458506]
[1723404387923,27.49,146.28,146.17,22.8804]
[1723404388112,27.49,146.24,146.17,22.8804]
[1723404388412,27.49,146.24,146.17,16.4552]
[1723404388775,6.1904,146.29,146.18,27.49]
[1723404388975,27.49,146.31,146.2,27.49]
[1723404389513,4.7857,146.27,146.18,27.49]
[1723404389702,27.49,146.31,146.2,27.49]
[1723404389902,11.85245433,146.32,146.24,27.49]
[1723404390113,11.85245433,146.32,146.22,6.4252]
[1723404390114,27.49,146.33,146.22,33.9152]
[1723404390314,27.49,146.33,146.18,6.4252]
[1723404390315,27.49,146.29,146.18,6.4252]
[1723404390525,27.49,146.27,146.18,6.4252]
[1723404390704,4.7866,146.24,146.18,6.4252]
[1723404390906,4.787,146.23,146.18,6.4252]
[1723404391412,27.49,146.27,146.18,6.4252]
[1723404391413,27.49,146.25,146.18,6.4252]
[1723404391589,27.49,146.19,146.17,16.4552]
[1723404391795,4.7872,146.23,146.17,16.4552]
[1723404392027,65.25098,146.24,146.17,16.4552]
[1723404392028,20.0,146.24,146.17,16.4552]
[1723404392224,20.12549,146.27,146.17,16.4552]
[1723404392431,45.12549,146.26,146.17,16.4552]
[1723404392714,4.7873,146.22,146.17,16.4552]
[1723404392894,78.31098,146.21,146.12,0.55458506]
[1723404393116,4.789,146.17,146.12,0.55458506]
[1723404393404,20.0,146.2,146.12,0.55458506]
[1723404393597,4.7886,146.18,146.12,0.55458506]
[1723404393791,20.0,146.2,146.12,0.55458506]
[1723404393792,45.0,146.17,146.12,0.55458506]
[1723404394040,20.0,146.16,146.12,0.55458506]
[1723404394398,0.12549,146.23,146.12,0.55458506]
[1723404394613,4.7889,146.17,146.12,0.55458506]
[1723404395635,4.7886,146.18,146.12,0.55458506]
[1723404395823,53.18549,146.22,146.12,0.55458506]
[1723404396027,0.25098,146.21,146.12,0.55458506]
[1723404396227,0.25098,146.21,146.12,5.34478506]
[1723404396405,0.12549,146.21,146.12,5.34478506]
[1723404396612,0.12549,146.23,146.12,5.34478506]
[1723404396613,20.12549,146.23,146.12,0.55458506]
[1723404396824,4.7884,146.19,146.12,5.34508506]
[1723404397031,4.7884,146.19,146.12,0.55458506]
[1723404397343,4.7891,146.17,146.12,0.55458506]
[1723404397522,4.7892,146.16,146.12,0.55458506]
[1723404397719,4.789,146.17,146.12,0.55458506]
[1723404398229,4.7896,146.15,146.12,0.55458506]
[1723404398416,0.25098,146.18,146.12,0.55458506]
[1723404398739,0.12549,146.17,146.12,0.55458506]
[1723404399030,4.7896,146.15,146.12,0.55458506]
[1723404399244,4.7902,146.13,146.12,0.55458506]
[1723404399447,37.8502,146.13,146.12,0.55458506]
[1723404399605,103.35216,146.13,146.12,0.55458506]
[1723404399807,4.91639,146.11,146.1,0.8464571]
[1723404400003,4.91639,146.11,146.09,216.94672792]
[1723404400004,4.91669,146.1,146.09,216.94672792]
[1723404400206,58.35316,146.1,146.09,49.26712792]
[1723404400440,58.35316,146.1,146.09,19.26712792]
[1723404400441,103.35316,146.1,146.09,19.26712792]
[1723404400738,110.44347612,146.1,146.09,19.26712792]
[1723404400904,110.44347612,146.1,146.09,15.98772792]
[1723404401100,16.89819,146.07,146.06,12.78595222]
[1723404401320,70.33466,146.07,146.06,12.58371611]
[1723404401720,70.33466,146.07,146.06,2.41711611]
[1723404401910,117.68498772,146.07,146.06,1.611e-05]
[1723404402119,94.26705941,146.07,146.06,1.611e-05]
[1723404402316,37.97959,146.01,146.0,0.06]
[1723404402536,25.29606,146.01,146.0,0.06]
[1723404402742,20.0,146.01,146.0,0.06]
[1723404403129,20.12549,146.01,146.0,0.06]
[1723404403436,4.7935,146.03,146.0,0.06]
[1723404403633,33.06,146.09,146.0,0.06]
[1723404403634,4.7941,146.01,146.0,0.06]
[1723404403840,37.8541,146.01,146.0,0.06]
[1723404404203,38.10670506,146.08,146.0,0.06]
[1723404404403,4.7938,146.02,146.0,0.06]
[1723404404737,33.06,146.09,146.0,0.06]
[1723404405033,4.7935,146.03,146.0,0.06]
[1723404405238,45.039,146.09,146.0,0.06]
[1723404405406,4.7958,146.07,146.0,0.06]
[1723404405740,4.7935,146.03,146.0,0.06]
[1723404405931,4.7929,146.05,146.0,0.06]
[1723404406621,4.7925,146.06,146.0,0.06]
[1723404407009,9.588,146.07,146.01,6.2569]
[1723404407233,4.7922,146.07,146.01,6.2569]
[1723404407548,40.13956906,146.1,146.01,6.2569]
[1723404407836,4.7941,146.01,146.0,0.06]
[1723404408210,33.06,146.07,146.0,0.06]
[1723404408415,20.0,146.06,146.0,0.06]
[1723404408615,20.0,146.07,146.0,0.06]
[1723404408842,0.50196,146.06,146.0,0.06]
[1723404409219,11.9822,146.05,146.0,0.06]
[1723404409405,4.7941,146.01,146.0,0.06]
[1723404409613,4.7938,146.02,146.0,0.06]
[1723404410348,4.7941,146.01,146.0,0.06]
[1723404410664,19.56632986,146.04,146.0,0.06]
[1723404410813,0.25098,146.06,146.0,0.06]
[1723404411013,4.7939,146.02,146.0,0.06]
[1723404411409,0.25098,146.06,146.0,0.06]
[1723404411410,4.7941,146.01,146.0,0.06]
[1723404412727,4.7939,146.02,146.0,0.06]
[1723404413048,4.7938,146.02,146.0,0.06]
[1723404413347,4.7935,146.04,146.0,0.06]
[1723404414228,4.7932,146.04,146.0,0.06]
[1723404414427,7.07956906,146.1,146.02,6.5941]
[1723404414638,11.9763,146.13,146.02,6.5941]
[1723404414639,4.7922,146.07,146.02,6.5941]
[1723404415231,4.7919,146.08,146.02,11.3879]
[1723404415540,7.07610447,146.11,146.02,11.3879]
[1723404415541,11.86700447,146.11,146.04,4.7931]
[1723404415748,4.7909,146.11,146.02,6.5941]
[1723404416050,33.06,146.15,146.02,6.5941]
[1723404416051,4.7912,146.1,146.03,4.7934]
[1723404416236,4.792,146.08,146.02,6.5941]
[1723404416547,40.14600709,146.15,146.02,6.5941]
[1723404416729,40.14600709,146.15,146.06,33.06]
[1723404416730,7.08600709,146.15,146.06,33.06]
[1723404416940,4.7902,146.13,146.07,4.7921]
[1723404417260,4.7892,146.17,146.1,4.7912]
[1723404417550,1.18606523,146.22,146.09,11.9787]
[1723404417934,4.7892,146.16,146.09,11.9787]
[1723404418121,4.7892,146.16,146.09,16.7702]
[1723404418322,7.07080218,146.2,146.14,4.7898]
[1723404418541,7.07080218,146.2,146.12,45.0361]
[1723404418845,4.7883,146.19,146.12,45.0361]
[1723404419052,4.7879,146.2,146.12,49.8265]
[1723404419216,4.7879,146.2,146.12,45.0361]
[1723404419422,267.66768034,146.25,146.12,45.0361]
[1723404419643,4.7876,146.21,146.14,4.7899]
[1723404419824,45.0271,146.24,146.12,11.9761]
[1723404420032,45.0271,146.24,146.1,22.3911]
[1723404420033,68.961,146.24,146.1,22.3911]
[1723404420252,4.7899,146.14,146.1,22.3911]
[1723404420426,45.0293,146.21,146.1,27.1822]
[1723404420748,4.7896,146.15,146.1,22.3911]
[1723404421043,33.18549,146.19,146.1,22.3911]
[1723404421351,20.0,146.18,146.1,34.3691]
[1723404421650,0.12549,146.17,146.1,22.3911]
[1723404421830,0.25098,146.17,146.1,22.3911]
[1723404422038,0.12549,146.2,146.1,22.3911]
[1723404422560,20.12549,146.2,146.1,22.3911]
[1723404422844,0.37647,146.19,146.1,22.3911]
[1723404423220,45.37647,146.19,146.1,22.3911]
[1723404423419,45.37647,146.19,146.1,27.1822]
[1723404423420,20.0,146.18,146.1,27.1822]
[1723404423645,4.7892,146.17,146.11,11.9772]
[1723404423853,4.7893,146.16,146.1,22.3911]
[1723404424152,20.0,146.18,146.1,22.3911]
[1723404424524,0.25098,146.19,146.1,22.3911]
[1723404424733,4.7889,146.17,146.1,27.1822]
[1723404425035,424.9339,146.24,146.1,22.3911]
[1723404425345,4.7882,146.2,146.13,4.7902]
[1723404425547,4.7883,146.19,146.12,4.7905]
[1723404425937,4.7869,146.23,146.16,4.7892]
[1723404426119,7.06768034,146.25,146.12,33.06]
[1723404426320,7.06768034,146.25,146.13,4.7901]
[1723404426622,4.7883,146.19,146.13,4.7902]
[1723404426843,4.7879,146.21,146.13,4.7902]
[1723404427043,4.7879,146.21,146.14,4.7898]
[1723404427936,11.9674,146.23,146.11,11.9764]
[1723404428138,4.7887,146.18,146.11,16.767]
[1723404428345,0.12549,146.19,146.1,22.3911]
[1723404428545,45.50196,146.19,146.1,22.3911]
[1723404428848,0.37647,146.19,146.1,22.3911]
[1723404429059,4.7899,146.14,146.1,22.3911]
[1723404429545,4.7895,146.16,146.1,22.3911]
[1723404430741,4.7889,146.17,146.1,27.1822]
[1723404430963,7.09366397,146.18,146.11,11.9771]
[1723404431163,4.7889,146.18,146.11,16.7679]
[1723404431450,7.09192377,146.22,146.13,11.9748]
[1723404431643,4.7876,146.21,146.13,16.7647]
[1723404431944,4.7876,146.21,146.06,6.3192]
[1723404431945,4.7922,146.07,146.06,6.3192]
[1723404432154,5.55560065,146.06,146.05,15.1761]
[1723404432364,4.7931,146.05,146.0,15.2361]
[1723404432532,4.7925,146.07,146.0,15.2361]
[1723404432852,11.9775,146.11,146.0,15.2361]
[1723404432853,4.7926,146.06,146.0,15.2361]
[1723404434950,24.7922,146.07,146.0,20.0305]
[1723404435147,4.7925,146.06,146.0,15.2361]
[1723404435352,4.7929,146.05,146.0,15.2361]
[1723404435666,20.0,146.07,146.01,4.7941]
[1723404435947,20.0,146.07,146.02,11.9845]
[1723404436140,33.06,146.12,146.03,4.7934]
[1723404436338,20.0,146.11,146.03,4.7934]
[1723404436564,2.76844135,146.14,145.99,6.2199]
[1723404436853,4.7899,146.14,145.99,6.2199]
[1723404437023,4.7903,146.13,145.99,6.2199]
[1723404437228,4.7909,146.11,146.0,27.39197374]
[1723404437652,4.7906,146.12,146.0,27.39197374]
[1723404438055,4.7914,146.1,145.99,6.2199]
[1723404438256,33.06,146.08,145.99,6.2199]
[1723404438465,33.06,146.05,145.99,6.2199]
[1723404439035,4.7934,146.04,145.99,6.2199]
[1723404439338,33.06,146.05,145.99,6.2199]
[1723404439860,33.06,146.08,146.0,16.0783]
[1723404440026,4.7926,146.06,146.0,16.0783]
[1723404440229,82.8529,146.05,146.0,16.0783]
[1723404441552,33.06,146.05,146.0,16.0783]
[1723404441857,33.06,146.08,146.0,16.0783]
[1723404442057,20.0,146.07,146.0,16.0783]
[1723404442647,4.7925,146.06,146.0,16.0783]
[1723404442966,24.7922,146.07,146.0,16.0783]
[1723404443352,20.0,146.07,146.0,16.0783]
[1723404445363,34.24534811,146.11,146.01,0.12549]
[1723404445544,1.18534811,146.11,146.01,0.25098]
[1723404445877,6.841,146.19,146.01,0.25098]
[1723404445878,16.0783,146.18,146.07,33.06]
[1723404446046,33.06,146.21,146.07,33.06]
[1723404446235,33.06,146.18,146.05,0.12549]
[1723404446441,33.06,146.18,146.05,0.37647]
[1723404446665,4.7889,146.18,146.05,0.37647]
[1723404447346,4.7889,146.18,146.06,0.12549]
[1723404447546,4.7883,146.19,146.07,0.12549]
[1723404447740,2.7963184,146.23,146.09,33.18549]
[1723404447943,4.7876,146.22,146.1,0.37647]
[1723404448268,33.06,146.24,146.1,0.37647]
[1723404448470,4.788,146.2,146.1,0.37647]
[1723404449070,2.74506826,146.25,146.08,22.1333]
[1723404449071,33.06,146.21,146.08,22.1333]
[1723404449276,37.8489,146.18,146.09,0.25098]
[1723404449488,4.7889,146.18,146.1,0.12549]
[1723404449650,4.7889,146.17,146.09,0.25098]
[1723404450355,33.06,146.16,146.08,22.1333]
[1723404450686,20.0,146.15,146.08,22.1333]
[1723404451051,33.06,146.13,146.08,22.1333]
[1723404451469,33.06,146.1,146.03,16.1144]
[1723404451656,20.0,146.15,146.03,16.1144]
[1723404451657,33.06,146.06,146.03,16.1144]
[1723404451850,33.06,146.06,145.97,22.1333]
[1723404452066,4.7938,146.02,145.97,22.1333]
[1723404452271,4.7942,146.01,145.97,22.1333]
[1723404452651,4.7948,146.0,145.97,22.1333]
[1723404452853,4.7944,146.01,145.97,22.1333]
[1723404453196,20.0,146.02,145.97,22.1333]
[1723404453474,4.7942,146.01,145.97,22.1333]
[1723404453683,4.7947,146.0,145.97,22.1333]
[1723404453982,4.7951,145.98,145.97,22.1333]
[1723404454352,4.7956,145.97,145.95,0.8464571]
[1723404455076,4.7958,145.96,145.95,0.8464571]
[1723404455289,50.04678,145.96,145.95,0.8464571]
[1723404455490,69.92129,145.96,145.95,0.8464571]
[1723404455659,24.7958,145.96,145.95,0.8464571]
[1723404455849,24.92129,145.96,145.95,0.8464571]
[1723404456050,70.29776,145.96,145.95,0.8464571]
[1723404457362,69.92129,145.96,145.95,0.8464571]
[1723404457681,24.7958,145.96,145.95,0.8464571]
[1723404458192,20.0,145.96,145.95,0.8464571]
[1723404458787,24.7958,145.96,145.95,0.8464571]
[1723404459981,69.7958,145.96,145.95,0.8464571]
[1723404460482,20.0,145.96,145.95,0.8464571]
[1723404460793,4.7951,145.99,145.95,0.8464571]
[1723404460974,11.9851,146.02,145.95,0.8464571]
[1723404461379,4.7952,145.98,145.95,0.8464571]
[1723404462059,4.7955,145.97,145.95,0.8464571]
[1723404462256,4.7952,145.98,145.95,0.8464571]
[1723404462684,20.12549,146.01,145.95,0.8464571]
[1723404462859,4.7955,145.97,145.95,0.8464571]
[1723404463889,20.0,146.01,145.95,0.8464571]
[1723404464069,35.9456,146.06,145.95,0.8464571]
[1723404464070,20.0,146.05,145.95,0.8464571]
[1723404464395,11.984,146.03,145.95,0.8464571]
[1723404464603,4.7951,145.99,145.95,0.8464571]
[1723404464809,11.9811,146.07,145.95,0.8464571]
[1723404465114,26.70627218,146.1,145.95,33.9064571]
[1723404465115,4.7935,146.03,145.95,33.9064571]
[1723404465405,4.7945,146.0,145.95,0.8464571]
[1723404465575,4.7941,146.02,145.95,33.9064571]
[1723404465775,4.7935,146.04,145.95,33.9064571]
[1723404465995,11.9796,146.09,145.98,33.06]
[1723404466201,407.66645962,146.14,145.98,33.06]
[1723404466407,4.7918,146.09,146.01,33.06]
[1723404466592,11.9763,146.13,146.01,33.06]
[1723404466787,4.7919,146.08,146.01,33.06]
[1723404466983,4.7923,146.07,146.01,33.06]
[1723404467179,11.9781,146.1,145.96,0.25098]
[1723404467387,33.06,146.08,145.95,0.8464571]
[1723404467602,31.9807,146.07,145.95,0.8464571]
[1723404468184,11.983,146.04,145.95,0.8464571]
[1723404468388,4.7944,146.01,145.95,0.8464571]
[1723404468803,4.7945,146.0,145.95,0.8464571]
[1723404469394,4.7939,146.02,145.95,0.8464571]
[1723404469592,4.7938,146.02,145.95,0.8464571]
[1723404469802,0.12549,146.06,145.95,0.8464571]
[1723404470011,4.7942,146.01,145.95,0.8464571]
[1723404470222,4.7945,146.0,145.95,0.8464571]
[1723404470517,0.12549,146.03,145.95,0.8464571]
[1723404470826,4.7955,145.97,145.95,0.8464571]
[1723404471517,4.7952,145.98,145.95,0.8464571]
[1723404472316,20.0,146.02,145.95,0.8464571]
[1723404472614,45.0,146.01,145.95,0.8464571]
[1723404472806,20.0,146.0,145.95,0.8464571]
[1723404473706,4.7949,145.99,145.95,0.8464571]
[1723404474313,4.7938,146.02,145.95,0.8464571]
[1723404474528,4.7938,146.02,145.96,1.36987593]
[1723404475008,11.9797,146.08,145.95,0.8464571]
[1723404475318,11.9797,146.08,145.97,33.06]
[1723404475893,4.7941,146.02,145.97,33.06]
[1723404476098,4.7935,146.03,145.97,33.06]
[1723404476526,11.9797,146.08,145.97,33.06]
[1723404476808,4.7942,146.01,145.97,33.06]
[1723404477029,11.9797,146.08,145.97,33.06]
[1723404477224,20.0,146.07,145.97,33.06]
[1723404477595,4.7941,146.02,145.97,33.06]
[1723404477791,20.0,146.05,145.97,33.06]
[1723404478105,4.7936,146.03,145.97,33.06]
[1723404478419,20.0,146.05,145.97,33.06]
[1723404478593,45.0,146.06,145.97,33.06]
[1723404478792,4.7931,146.05,145.97,33.06]
[1723404479012,13.16336489,146.11,145.97,33.06]
[1723404479013,11.9795,146.09,145.97,33.06]
[1723404479315,11.9813,146.06,145.95,0.8464571]
[1723404479510,45.0,146.05,145.95,0.8464571]
[1723404479891,20.0,146.04,145.95,0.8464571]
[1723404480420,4.7938,146.03,145.95,0.8464571]
[1723404480928,4.7933,146.04,145.97,33.06]